[Event "*** Titled Tuesday Blitz"]
[Site "Chess.com"]
[Date "2020.03.03"]
[Round "2"]
[White "Perecke"]
[Black "FelixJoseYnojosa"]
[Result "0-1"]
[WhiteElo "2291"]
[BlackElo "2699"]
[TimeControl "180+1"]
[EndTime "13:16:11 PST"]
[Termination "FelixJoseYnojosa won by resignation"]

1. e4 {[%clk 0:03:00.9]} 1... c5 {[%clk 0:03:00.1]} 2. Nf3 {[%clk 0:03:00.1]}
2... Nc6 {[%clk 0:03:00.6]} 3. d4 {[%clk 0:02:52.6]} 3... cxd4 {[%clk
0:03:01.5]} 4. Nxd4 {[%clk 0:02:51.4]} 4... e5 {[%clk 0:03:01.1]} 5. Nb5 {[%clk
0:02:49.4]} 5... d6 {[%clk 0:03:00.9]} 6. c4 {[%clk 0:02:49.2]} 6... Be7 {[%clk
0:03:00.5]} 7. Be3 {[%clk 0:02:41.9]} 7... Nf6 {[%clk 0:02:59.9]} 8. Nd2 {[%clk
0:02:38.8]} 8... O-O {[%clk 0:02:59.1]} 9. Be2 {[%clk 0:02:38.6]} 9... Nd7
{[%clk 0:02:56.2]} 10. O-O {[%clk 0:02:34.4]} 10... Nc5 {[%clk 0:02:55.5]} 11.
b4 {[%clk 0:02:29.6]} 11... Ne6 {[%clk 0:02:55.3]} 12. Nb3 {[%clk 0:02:17.7]}
12... Nxb4 {[%clk 0:02:53.1]} 13. Bxa7 {[%clk 0:02:08.1]} 13... Nc6 {[%clk
0:02:48.3]} 14. Be3 {[%clk 0:01:59.8]} 14... Bg5 {[%clk 0:02:41.5]} 15. Bxg5
{[%clk 0:01:45.6]} 15... Qxg5 {[%clk 0:02:40.5]} 16. Qxd6 {[%clk 0:01:45.6]}
16... Rd8 {[%clk 0:02:31.2]} 17. f4 {[%clk 0:01:29.5]} 17... exf4 {[%clk
0:02:20.4]} 18. h4 {[%clk 0:01:15.2]} 18... Qxh4 {[%clk 0:02:10]} 19. Rxf4
{[%clk 0:01:13.3]} 19... Qxf4 {[%clk 0:02:07.6]} 0-1

[Event "*** Titled Tuesday Blitz"]
[Site "Chess.com"]
[Date "2020.03.03"]
[Round "2"]
[White "Parhamov"]
[Black "ZEN-22"]
[Result "1-0"]
[WhiteElo "3044"]
[BlackElo "2371"]
[TimeControl "180+1"]
[EndTime "13:17:00 PST"]
[Termination "Parhamov won by resignation"]

1. e4 {[%clk 0:03:00.9]} 1... b6 {[%clk 0:03:00.9]} 2. d4 {[%clk 0:03:00.7]}
2... Bb7 {[%clk 0:02:59.5]} 3. Nc3 {[%clk 0:03:00.6]} 3... e6 {[%clk 0:02:59.2]}
4. Bd3 {[%clk 0:02:58.8]} 4... c5 {[%clk 0:02:54]} 5. d5 {[%clk 0:02:56.3]} 5...
Nf6 {[%clk 0:02:51.9]} 6. Nge2 {[%clk 0:02:52.7]} 6... exd5 {[%clk 0:02:50.8]}
7. exd5 {[%clk 0:02:53.1]} 7... Nxd5 {[%clk 0:02:49.5]} 8. O-O {[%clk
0:02:52.2]} 8... Nf6 {[%clk 0:02:39.7]} 9. Ng3 {[%clk 0:02:49.5]} 9... Be7
{[%clk 0:02:40]} 10. Nf5 {[%clk 0:02:48.9]} 10... O-O {[%clk 0:02:39.9]} 11. Re1
{[%clk 0:02:46.7]} 11... Re8 {[%clk 0:02:37.2]} 12. Bg5 {[%clk 0:02:46.5]} 12...
Nc6 {[%clk 0:02:33.7]} 13. Qf3 {[%clk 0:02:43.1]} 13... d5 {[%clk 0:02:06.9]}
14. Bb5 {[%clk 0:02:34.7]} 14... Nd4 {[%clk 0:02:00.6]} 15. Nxd4 {[%clk
0:02:32.7]} 15... cxd4 {[%clk 0:02:00.5]} 16. Bxf6 {[%clk 0:02:32.2]} 16... dxc3
{[%clk 0:01:56.5]} 17. Bxc3 {[%clk 0:02:20.7]} 17... Rf8 {[%clk 0:01:44]} 18.
Rad1 {[%clk 0:02:20.2]} 18... Bf6 {[%clk 0:01:42.8]} 19. Bb4 {[%clk 0:02:16.4]}
19... a6 {[%clk 0:01:40.2]} 20. Bd3 {[%clk 0:02:10.3]} 20... Re8 {[%clk
0:01:38.4]} 21. Rxe8+ {[%clk 0:02:09.6]} 21... Qxe8 {[%clk 0:01:38]} 22. Qf5
{[%clk 0:02:10.5]} 22... Qe4 {[%clk 0:01:20.9]} 23. Bxe4 {[%clk 0:02:07.7]}
23... dxe4 {[%clk 0:01:21.8]} 24. Rd6 {[%clk 0:02:04.8]} 24... Bc8 {[%clk
0:01:07.2]} 25. Qxe4 {[%clk 0:02:04.1]} 25... Bb7 {[%clk 0:01:00.9]} 26. Qxb7
{[%clk 0:02:03.6]} 26... Re8 {[%clk 0:01:01.2]} 27. Rxf6 {[%clk 0:02:01.8]}
27... a5 {[%clk 0:01:00]} 28. Qxf7+ {[%clk 0:02:00.3]} 1-0

[Event "*** Titled Tuesday Blitz"]
[Site "Chess.com"]
[Date "2020.03.03"]
[Round "2"]
[White "LarissaSteenbekkers"]
[Black "atbenina64"]
[Result "0-1"]
[WhiteElo "1857"]
[BlackElo "2380"]
[TimeControl "180+1"]
[EndTime "13:17:02 PST"]
[Termination "atbenina64 won by checkmate"]

1. e4 {[%clk 0:03:00.9]} 1... c6 {[%clk 0:02:59.8]} 2. d4 {[%clk 0:02:58]} 2...
d5 {[%clk 0:03:00.7]} 3. Nd2 {[%clk 0:02:57.3]} 3... dxe4 {[%clk 0:03:00.6]} 4.
Nxe4 {[%clk 0:02:57.2]} 4... Nf6 {[%clk 0:03:01.5]} 5. Nxf6+ {[%clk 0:02:56.2]}
5... exf6 {[%clk 0:03:02.4]} 6. Bd3 {[%clk 0:02:53.9]} 6... Bd6 {[%clk
0:03:02.1]} 7. c3 {[%clk 0:02:50.4]} 7... O-O {[%clk 0:03:01.6]} 8. Qc2 {[%clk
0:02:49.5]} 8... Re8+ {[%clk 0:03:02.5]} 9. Ne2 {[%clk 0:02:46.5]} 9... h5
{[%clk 0:03:03.4]} 10. O-O {[%clk 0:02:42.3]} 10... h4 {[%clk 0:03:02.2]} 11. h3
{[%clk 0:02:37.2]} 11... Nd7 {[%clk 0:03:02.1]} 12. Bd2 {[%clk 0:02:29.4]} 12...
Nf8 {[%clk 0:03:01.7]} 13. Nf4 {[%clk 0:02:27.7]} 13... Qc7 {[%clk 0:02:58.4]}
14. Nh5 {[%clk 0:02:19.8]} 14... Be6 {[%clk 0:02:43]} 15. Rfe1 {[%clk
0:02:15.9]} 15... b5 {[%clk 0:02:36.2]} 16. a3 {[%clk 0:02:13.4]} 16... Bd5
{[%clk 0:02:34.7]} 17. b3 {[%clk 0:01:57.4]} 17... Be6 {[%clk 0:02:30.7]} 18.
Re4 {[%clk 0:01:47]} 18... Ng6 {[%clk 0:02:14.2]} 19. Rae1 {[%clk 0:01:41.5]}
19... Bd7 {[%clk 0:02:10.1]} 20. Rxe8+ {[%clk 0:01:17.2]} 20... Bxe8 {[%clk
0:02:11]} 21. Bxg6 {[%clk 0:01:01.9]} 21... fxg6 {[%clk 0:02:09.4]} 22. Rxe8+
{[%clk 0:01:00.7]} 22... Rxe8 {[%clk 0:02:08.8]} 23. Qxg6 {[%clk 0:00:59.2]}
23... Re6 {[%clk 0:01:55.3]} 24. Bh6 {[%clk 0:00:48.9]} 24... Re1# {[%clk
0:01:54.2]} 0-1

[Event "*** Titled Tuesday Blitz"]
[Site "Chess.com"]
[Date "2020.03.03"]
[Round "2"]
[White "kismet6"]
[Black "Hadza_3"]
[Result "0-1"]
[WhiteElo "1992"]
[BlackElo "2391"]
[TimeControl "180+1"]
[EndTime "13:17:10 PST"]
[Termination "Hadza_3 won by resignation"]

1. e4 {[%clk 0:02:59.6]} 1... e5 {[%clk 0:02:59.6]} 2. Nf3 {[%clk 0:02:59]} 2...
Nc6 {[%clk 0:02:57]} 3. Bc4 {[%clk 0:02:58.2]} 3... Nf6 {[%clk 0:02:55.4]} 4.
Ng5 {[%clk 0:02:54.6]} 4... d5 {[%clk 0:02:54.9]} 5. exd5 {[%clk 0:02:54.5]}
5... Nd4 {[%clk 0:02:53.8]} 6. c3 {[%clk 0:02:54.2]} 6... b5 {[%clk 0:02:52.9]}
7. Bf1 {[%clk 0:02:50.8]} 7... Nxd5 {[%clk 0:02:52.9]} 8. Ne4 {[%clk 0:02:41.8]}
8... Qh4 {[%clk 0:02:49.8]} 9. Ng3 {[%clk 0:02:40.6]} 9... Bb7 {[%clk
0:02:47.9]} 10. cxd4 {[%clk 0:02:36.9]} 10... O-O-O {[%clk 0:02:40.8]} 11. Nc3
{[%clk 0:02:23.8]} 11... Nf4 {[%clk 0:02:26.9]} 12. d3 {[%clk 0:02:14.8]} 12...
Nxg2+ {[%clk 0:02:18.5]} 13. Bxg2 {[%clk 0:02:11.1]} 13... Bxg2 {[%clk
0:02:19.4]} 14. dxe5 {[%clk 0:01:58.6]} 14... Bxh1 {[%clk 0:02:16.6]} 15. Nxh1
{[%clk 0:01:58.5]} 15... Qxh2 {[%clk 0:02:12.8]} 16. Qf3 {[%clk 0:01:58.3]}
16... Qxe5+ {[%clk 0:01:51.9]} 17. Be3 {[%clk 0:01:57.3]} 17... b4 {[%clk
0:01:41.7]} 18. d4 {[%clk 0:01:35.4]} 18... Rxd4 {[%clk 0:01:29.9]} 19. Qa8+
{[%clk 0:01:25.3]} 19... Kd7 {[%clk 0:01:28.5]} 20. Rd1 {[%clk 0:01:24.7]} 20...
Rxd1+ {[%clk 0:01:23.8]} 21. Nxd1 {[%clk 0:01:24.5]} 21... b3 {[%clk 0:01:24.1]}
22. axb3 {[%clk 0:01:20.8]} 22... Bb4+ {[%clk 0:01:23.3]} 0-1

[Event "*** Titled Tuesday Blitz"]
[Site "Chess.com"]
[Date "2020.03.03"]
[Round "2"]
[White "semchik73"]
[Black "Vyacheslav_N"]
[Result "0-1"]
[WhiteElo "2314"]
[BlackElo "2573"]
[TimeControl "180+1"]
[EndTime "13:17:16 PST"]
[Termination "Vyacheslav_N won by resignation"]

1. Nf3 {[%clk 0:02:54.1]} 1... d5 {[%clk 0:02:57.8]} 2. c4 {[%clk 0:02:54.5]}
2... d4 {[%clk 0:02:57.7]} 3. e3 {[%clk 0:02:54.6]} 3... c5 {[%clk 0:02:57.4]}
4. b4 {[%clk 0:02:55.1]} 4... cxb4 {[%clk 0:02:55.5]} 5. Nxd4 {[%clk 0:02:54]}
5... e6 {[%clk 0:02:50.9]} 6. Bb2 {[%clk 0:02:52.8]} 6... a5 {[%clk 0:02:49.4]}
7. Be2 {[%clk 0:02:51.7]} 7... a4 {[%clk 0:02:49.6]} 8. O-O {[%clk 0:02:51.1]}
8... Nf6 {[%clk 0:02:46.9]} 9. d3 {[%clk 0:02:49.2]} 9... Be7 {[%clk 0:02:26.1]}
10. Nd2 {[%clk 0:02:48.2]} 10... O-O {[%clk 0:02:24.8]} 11. Ne4 {[%clk
0:02:46.4]} 11... Nxe4 {[%clk 0:02:22.2]} 12. dxe4 {[%clk 0:02:46]} 12... Nc6
{[%clk 0:02:07.9]} 13. a3 {[%clk 0:02:44.3]} 13... b3 {[%clk 0:01:58.6]} 14. Nb5
{[%clk 0:02:43.6]} 14... b6 {[%clk 0:01:53.1]} 15. f4 {[%clk 0:02:41.8]} 15...
Bb7 {[%clk 0:01:53.2]} 16. Qxd8 {[%clk 0:02:40.6]} 16... Rfxd8 {[%clk
0:01:51.9]} 17. Rfd1 {[%clk 0:02:41]} 17... Bc5 {[%clk 0:01:51.9]} 18. Kf2
{[%clk 0:02:39.4]} 18... Na5 {[%clk 0:01:46.7]} 19. Rxd8+ {[%clk 0:02:33.8]}
19... Rxd8 {[%clk 0:01:45.7]} 20. Nd4 {[%clk 0:02:26.2]} 20... Bxe4 {[%clk
0:01:44]} 21. g3 {[%clk 0:02:25.5]} 21... Kf8 {[%clk 0:01:38.1]} 22. Rc1 {[%clk
0:02:24]} 22... Ke7 {[%clk 0:01:37.8]} 23. Rd1 {[%clk 0:02:21.6]} 23... f6
{[%clk 0:01:25.1]} 24. g4 {[%clk 0:02:21.5]} 24... Nc6 {[%clk 0:01:20.4]} 25.
Nb5 {[%clk 0:02:19.3]} 25... Rxd1 {[%clk 0:01:15.6]} 26. Bxd1 {[%clk 0:02:19.7]}
26... Na5 {[%clk 0:01:12.5]} 27. Be2 {[%clk 0:02:18.9]} 27... Nb7 {[%clk
0:01:05.5]} 28. Nc3 {[%clk 0:02:19.1]} 28... Bc6 {[%clk 0:01:04.6]} 29. Bf3
{[%clk 0:02:18.9]} 29... Bxf3 {[%clk 0:01:02.7]} 30. Kxf3 {[%clk 0:02:19.3]}
30... Na5 {[%clk 0:01:03.6]} 31. Nxa4 {[%clk 0:02:19]} 31... Nxc4 {[%clk
0:01:03]} 32. Nxc5 {[%clk 0:02:19.4]} 32... bxc5 {[%clk 0:01:03.9]} 33. Bc3
{[%clk 0:02:19.5]} 33... b2 {[%clk 0:01:04.8]} 34. Bxb2 {[%clk 0:02:19.8]} 34...
Nxb2 {[%clk 0:01:05.7]} 35. Ke4 {[%clk 0:02:19.5]} 35... Kd6 {[%clk 0:01:04.9]}
36. f5 {[%clk 0:02:19.3]} 36... e5 {[%clk 0:01:04.3]} 37. h4 {[%clk 0:02:18.6]}
37... c4 {[%clk 0:01:04.8]} 38. Kf3 {[%clk 0:02:17.3]} 38... c3 {[%clk
0:01:04.3]} 39. Ke2 {[%clk 0:02:17.7]} 39... c2 {[%clk 0:01:04.9]} 40. Kd2
{[%clk 0:02:17.9]} 40... Nc4+ {[%clk 0:01:03.5]} 41. Kxc2 {[%clk 0:02:18.4]}
41... Nxe3+ {[%clk 0:01:03.8]} 42. Kd3 {[%clk 0:02:18.5]} 42... Nxg4 {[%clk
0:01:03.8]} 43. a4 {[%clk 0:02:18.5]} 43... Kc5 {[%clk 0:01:04.3]} 0-1

[Event "*** Titled Tuesday Blitz"]
[Site "Chess.com"]
[Date "2020.03.03"]
[Round "2"]
[White "Bulldog167"]
[Black "x-3738459472"]
[Result "1-0"]
[WhiteElo "2751"]
[BlackElo "2544"]
[TimeControl "180+1"]
[EndTime "13:17:22 PST"]
[Termination "Bulldog167 won by resignation"]

1. d4 {[%clk 0:03:00.9]} 1... Nf6 {[%clk 0:02:32]} 2. c4 {[%clk 0:03:00.4]} 2...
c5 {[%clk 0:02:31.7]} 3. d5 {[%clk 0:02:59.7]} 3... e5 {[%clk 0:02:32.3]} 4. Nc3
{[%clk 0:02:59.6]} 4... d6 {[%clk 0:02:32.7]} 5. e4 {[%clk 0:02:59.6]} 5... Be7
{[%clk 0:02:33]} 6. g3 {[%clk 0:02:59.8]} 6... Nbd7 {[%clk 0:02:33.1]} 7. Bg2
{[%clk 0:03:00.1]} 7... Nf8 {[%clk 0:02:31.2]} 8. Nf3 {[%clk 0:02:59.4]} 8...
Ng6 {[%clk 0:02:32.1]} 9. O-O {[%clk 0:02:59.4]} 9... O-O {[%clk 0:02:29.8]} 10.
Ne1 {[%clk 0:02:56.8]} 10... a6 {[%clk 0:02:17.9]} 11. Nd3 {[%clk 0:02:54.9]}
11... Re8 {[%clk 0:02:03.2]} 12. a4 {[%clk 0:02:51.5]} 12... a5 {[%clk
0:02:02.3]} 13. b3 {[%clk 0:02:31.4]} 13... b6 {[%clk 0:01:50.1]} 14. Bb2 {[%clk
0:02:31.4]} 14... Bf8 {[%clk 0:01:44.3]} 15. Kh1 {[%clk 0:02:27.6]} 15... Bd7
{[%clk 0:01:40.6]} 16. Qd2 {[%clk 0:02:19.8]} 16... Qc8 {[%clk 0:01:39.8]} 17.
Rae1 {[%clk 0:02:19.5]} 17... Bh3 {[%clk 0:01:39.5]} 18. f3 {[%clk 0:02:18.6]}
18... h5 {[%clk 0:01:37.3]} 19. Nb5 {[%clk 0:02:15.2]} 19... h4 {[%clk
0:01:31.1]} 20. Bxh3 {[%clk 0:02:07.3]} 20... Qxh3 {[%clk 0:01:29.6]} 21. g4
{[%clk 0:02:03.5]} 21... Rac8 {[%clk 0:01:20.4]} 22. Qe2 {[%clk 0:01:57.7]}
22... Nf4 {[%clk 0:00:53]} 23. Nxf4 {[%clk 0:01:55.3]} 23... exf4 {[%clk
0:00:53.9]} 24. Bxf6 {[%clk 0:01:44.2]} 24... gxf6 {[%clk 0:00:54.8]} 25. Nc3
{[%clk 0:01:44.7]} 25... Re5 {[%clk 0:00:51.7]} 26. Nd1 {[%clk 0:01:42.4]} 1-0

[Event "*** Titled Tuesday Blitz"]
[Site "Chess.com"]
[Date "2020.03.03"]
[Round "2"]
[White "Enriquack"]
[Black "Alopekos"]
[Result "0-1"]
[WhiteElo "2088"]
[BlackElo "2430"]
[TimeControl "180+1"]
[EndTime "13:17:25 PST"]
[Termination "Alopekos won by resignation"]

1. e4 {[%clk 0:02:58.8]} 1... c5 {[%clk 0:02:59.6]} 2. Nf3 {[%clk 0:02:58.8]}
2... e6 {[%clk 0:02:59.9]} 3. d4 {[%clk 0:02:57.7]} 3... cxd4 {[%clk 0:03:00.8]}
4. Nxd4 {[%clk 0:02:58.1]} 4... Nc6 {[%clk 0:03:00.4]} 5. Nb5 {[%clk 0:02:58.1]}
5... d6 {[%clk 0:02:49.3]} 6. c4 {[%clk 0:02:57.8]} 6... a6 {[%clk 0:02:45.4]}
7. N5c3 {[%clk 0:02:55.7]} 7... Nf6 {[%clk 0:02:45.5]} 8. Be2 {[%clk 0:02:53.3]}
8... Be7 {[%clk 0:02:44.6]} 9. O-O {[%clk 0:02:53.2]} 9... O-O {[%clk
0:02:44.6]} 10. Be3 {[%clk 0:02:52.4]} 10... b6 {[%clk 0:02:43.4]} 11. Na3
{[%clk 0:02:49.7]} 11... Bb7 {[%clk 0:02:42.3]} 12. f3 {[%clk 0:02:49.3]} 12...
d5 {[%clk 0:02:32.3]} 13. cxd5 {[%clk 0:02:42.8]} 13... exd5 {[%clk 0:02:32.1]}
14. exd5 {[%clk 0:02:42.4]} 14... Nb4 {[%clk 0:02:32]} 15. Qb3 {[%clk
0:02:03.1]} 15... Nbxd5 {[%clk 0:02:11.7]} 16. Rfd1 {[%clk 0:01:41.1]} 16... Qc7
{[%clk 0:01:22.3]} 17. Nxd5 {[%clk 0:01:34.4]} 17... Nxd5 {[%clk 0:01:21.9]} 18.
Rxd5 {[%clk 0:01:11.1]} 18... Bxd5 {[%clk 0:01:18.2]} 19. Qxd5 {[%clk
0:01:08.9]} 19... Bxa3 {[%clk 0:01:14.1]} 20. b3 {[%clk 0:01:08.3]} 20... Rae8
{[%clk 0:01:00.8]} 0-1

[Event "*** Titled Tuesday Blitz"]
[Site "Chess.com"]
[Date "2020.03.03"]
[Round "2"]
[White "saraswathii"]
[Black "LucaBrasi1968"]
[Result "0-1"]
[WhiteElo "2220"]
[BlackElo "2479"]
[TimeControl "180+1"]
[EndTime "13:17:36 PST"]
[Termination "LucaBrasi1968 won by resignation"]

1. e4 {[%clk 0:03:00.9]} 1... c6 {[%clk 0:02:58.3]} 2. d3 {[%clk 0:02:59.2]}
2... d5 {[%clk 0:02:59.2]} 3. Nd2 {[%clk 0:02:57.7]} 3... Nf6 {[%clk 0:02:59.2]}
4. Ngf3 {[%clk 0:02:57.1]} 4... Bg4 {[%clk 0:02:58.9]} 5. h3 {[%clk 0:02:55]}
5... Bh5 {[%clk 0:02:58.3]} 6. g4 {[%clk 0:02:40.7]} 6... Bg6 {[%clk 0:02:58]}
7. e5 {[%clk 0:02:39.8]} 7... Nfd7 {[%clk 0:02:57.8]} 8. d4 {[%clk 0:02:39.9]}
8... e6 {[%clk 0:02:57.5]} 9. Bg2 {[%clk 0:02:39.1]} 9... c5 {[%clk 0:02:56.7]}
10. c3 {[%clk 0:02:38.1]} 10... Nc6 {[%clk 0:02:56.2]} 11. O-O {[%clk
0:02:37.2]} 11... cxd4 {[%clk 0:02:52]} 12. cxd4 {[%clk 0:02:36.1]} 12... Be7
{[%clk 0:02:47.1]} 13. Nb3 {[%clk 0:02:33.2]} 13... h5 {[%clk 0:02:45.7]} 14. g5
{[%clk 0:02:29.2]} 14... a5 {[%clk 0:02:42.7]} 15. a4 {[%clk 0:02:22.4]} 15...
h4 {[%clk 0:02:41]} 16. Be3 {[%clk 0:02:17.9]} 16... Nb4 {[%clk 0:02:38.1]} 17.
Qd2 {[%clk 0:02:15]} 17... Nb6 {[%clk 0:02:20.5]} 18. Rfc1 {[%clk 0:02:00.8]}
18... Nc4 {[%clk 0:02:19.9]} 19. Qc3 {[%clk 0:01:56]} 19... Rc8 {[%clk
0:02:15.9]} 20. Bf1 {[%clk 0:01:49.8]} 20... Bh5 {[%clk 0:01:35.8]} 21. Bf4
{[%clk 0:01:22.1]} 21... b6 {[%clk 0:01:27.4]} 22. Bxc4 {[%clk 0:01:16.4]} 22...
dxc4 {[%clk 0:01:24.4]} 23. Ne1 {[%clk 0:00:58.7]} 23... Nd5 {[%clk 0:01:22.6]}
0-1

[Event "*** Titled Tuesday Blitz"]
[Site "Chess.com"]
[Date "2020.03.03"]
[Round "2"]
[White "Dale"]
[Black "marianokar"]
[Result "0-1"]
[WhiteElo "1896"]
[BlackElo "2379"]
[TimeControl "180+1"]
[EndTime "13:17:44 PST"]
[Termination "marianokar won by checkmate"]

1. c3 {[%clk 0:03:00.9]} 1... Nf6 {[%clk 0:02:58.4]} 2. Nf3 {[%clk 0:02:59.9]}
2... g6 {[%clk 0:02:58.2]} 3. d3 {[%clk 0:02:58.5]} 3... Bg7 {[%clk 0:02:58.2]}
4. Qa4 {[%clk 0:02:52.5]} 4... O-O {[%clk 0:02:57.4]} 5. h4 {[%clk 0:02:49.9]}
5... h5 {[%clk 0:02:56]} 6. Na3 {[%clk 0:02:43.3]} 6... c5 {[%clk 0:02:53.6]} 7.
Bg5 {[%clk 0:02:37.9]} 7... d6 {[%clk 0:02:52.2]} 8. O-O-O {[%clk 0:02:32.8]}
8... Nc6 {[%clk 0:02:48.1]} 9. Rh3 {[%clk 0:02:30.8]} 9... Bxh3 {[%clk
0:02:38.9]} 10. gxh3 {[%clk 0:02:30.7]} 10... Rb8 {[%clk 0:02:38.7]} 11. Bg2
{[%clk 0:02:27.5]} 11... b5 {[%clk 0:02:29.2]} 12. Nxb5 {[%clk 0:02:24.8]} 12...
Qb6 {[%clk 0:02:28.9]} 13. Nd2 {[%clk 0:02:11.2]} 13... Rfc8 {[%clk 0:02:16.2]}
14. Bxc6 {[%clk 0:01:56.8]} 14... Rxc6 {[%clk 0:02:15.3]} 15. Nc4 {[%clk
0:01:35.2]} 15... Qxb5 {[%clk 0:02:14.5]} 16. Qxa7 {[%clk 0:01:35.3]} 16... d5
{[%clk 0:01:43.4]} 17. b3 {[%clk 0:01:24.6]} 17... dxc4 {[%clk 0:01:29.8]} 18.
dxc4 {[%clk 0:01:24.6]} 18... Qb6 {[%clk 0:01:22.6]} 19. Qxe7 {[%clk 0:01:23.4]}
19... Re6 {[%clk 0:01:22]} 20. Bxf6 {[%clk 0:01:20]} 20... Bxf6 {[%clk
0:01:18.3]} 21. Qd7 {[%clk 0:01:17.9]} 21... Rd8 {[%clk 0:01:13.4]} 22. Qa4
{[%clk 0:01:14.8]} 22... Rxe2 {[%clk 0:01:03.2]} 23. f4 {[%clk 0:01:07.4]} 23...
Bxc3 {[%clk 0:00:55.3]} 24. f5 {[%clk 0:01:05.9]} 24... Bb2+ {[%clk 0:00:55]}
25. Kb1 {[%clk 0:01:04.6]} 25... Rxd1# {[%clk 0:00:55.9]} 0-1

[Event "*** Titled Tuesday Blitz"]
[Site "Chess.com"]
[Date "2020.03.03"]
[Round "2"]
[White "Fandorine"]
[Black "ronaldbrizuela"]
[Result "1-0"]
[WhiteElo "2901"]
[BlackElo "2624"]
[TimeControl "180+1"]
[EndTime "13:17:45 PST"]
[Termination "Fandorine won by resignation"]

1. e4 {[%clk 0:03:00.9]} 1... e6 {[%clk 0:02:59.7]} 2. d4 {[%clk 0:03:00.3]}
2... d5 {[%clk 0:02:59.2]} 3. Nd2 {[%clk 0:03:00.5]} 3... Nf6 {[%clk 0:02:58.8]}
4. e5 {[%clk 0:02:59.8]} 4... Nfd7 {[%clk 0:02:59.1]} 5. f4 {[%clk 0:03:00]}
5... c5 {[%clk 0:02:59.4]} 6. c3 {[%clk 0:03:00.5]} 6... Nc6 {[%clk 0:02:59.9]}
7. Ngf3 {[%clk 0:03:01]} 7... a5 {[%clk 0:02:59.5]} 8. a4 {[%clk 0:03:00.1]}
8... cxd4 {[%clk 0:02:59.1]} 9. cxd4 {[%clk 0:03:00.2]} 9... Nb4 {[%clk
0:02:59.1]} 10. Nb1 {[%clk 0:02:57.6]} 10... Nb8 {[%clk 0:02:58.5]} 11. Nc3
{[%clk 0:02:57.7]} 11... N8c6 {[%clk 0:02:56.9]} 12. Bb5 {[%clk 0:02:58.1]}
12... Be7 {[%clk 0:02:56.3]} 13. O-O {[%clk 0:02:58.5]} 13... Bd7 {[%clk
0:02:51.3]} 14. Be3 {[%clk 0:02:58.8]} 14... Na7 {[%clk 0:02:49.6]} 15. Be2
{[%clk 0:02:58.6]} 15... Rc8 {[%clk 0:02:46.6]} 16. Qd2 {[%clk 0:02:58.7]} 16...
g6 {[%clk 0:02:44.7]} 17. b3 {[%clk 0:02:50.4]} 17... h5 {[%clk 0:02:42.7]} 18.
Rac1 {[%clk 0:02:47]} 18... Kf8 {[%clk 0:02:41.2]} 19. g3 {[%clk 0:02:33.1]}
19... Kg7 {[%clk 0:02:39.9]} 20. Kg2 {[%clk 0:02:33.6]} 20... b5 {[%clk
0:02:13.2]} 21. axb5 {[%clk 0:02:23]} 21... Rb8 {[%clk 0:02:07.9]} 22. h3 {[%clk
0:02:00.5]} 22... Nxb5 {[%clk 0:02:07.1]} 23. Na4 {[%clk 0:02:00.1]} 23... Na7
{[%clk 0:01:57.9]} 24. Nc5 {[%clk 0:01:56.5]} 24... Bb5 {[%clk 0:01:55.8]} 25.
g4 {[%clk 0:01:41.2]} 25... Bxe2 {[%clk 0:01:51]} 26. Qxe2 {[%clk 0:01:41.2]}
26... hxg4 {[%clk 0:01:51.4]} 27. hxg4 {[%clk 0:01:41.2]} 27... Bxc5 {[%clk
0:01:21.3]} 28. Rxc5 {[%clk 0:01:38.4]} 28... Rc8 {[%clk 0:01:21.3]} 29. f5
{[%clk 0:01:29.3]} 29... Rxc5 {[%clk 0:01:16.1]} 30. dxc5 {[%clk 0:01:30.2]}
30... Nac6 {[%clk 0:01:13.3]} 31. Bg5 {[%clk 0:01:29.8]} 31... Qxg5 {[%clk
0:00:59.3]} 32. Nxg5 {[%clk 0:01:28.2]} 1-0

[Event "*** Titled Tuesday Blitz"]
[Site "Chess.com"]
[Date "2020.03.03"]
[Round "2"]
[White "guillembaches"]
[Black "MikeSailer"]
[Result "1-0"]
[WhiteElo "2418"]
[BlackElo "2108"]
[TimeControl "180+1"]
[EndTime "13:17:48 PST"]
[Termination "guillembaches won by resignation"]

1. e4 {[%clk 0:03:00.9]} 1... d5 {[%clk 0:02:59.8]} 2. exd5 {[%clk 0:03:00.6]}
2... Qxd5 {[%clk 0:02:58.7]} 3. Nc3 {[%clk 0:03:00.8]} 3... Qd6 {[%clk
0:02:58.2]} 4. d4 {[%clk 0:02:58.7]} 4... Nf6 {[%clk 0:02:58.2]} 5. Nb5 {[%clk
0:02:57.8]} 5... Qe6+ {[%clk 0:02:43.8]} 6. Qe2 {[%clk 0:02:50.1]} 6... Qxe2+
{[%clk 0:02:40.2]} 7. Bxe2 {[%clk 0:02:50]} 7... Na6 {[%clk 0:02:39.4]} 8. Bf4
{[%clk 0:02:49.9]} 8... c6 {[%clk 0:02:34.5]} 9. Nc7+ {[%clk 0:02:50]} 9... Nxc7
{[%clk 0:02:33.4]} 10. Bxc7 {[%clk 0:02:50.9]} 10... Bf5 {[%clk 0:02:30.2]} 11.
O-O-O {[%clk 0:02:48.7]} 11... e6 {[%clk 0:02:30.5]} 12. Nf3 {[%clk 0:02:48.1]}
12... Nd5 {[%clk 0:02:28.9]} 13. Bg3 {[%clk 0:02:47.6]} 13... h6 {[%clk
0:02:26.1]} 14. a3 {[%clk 0:02:36.4]} 14... O-O-O {[%clk 0:02:24.7]} 15. Ne5
{[%clk 0:02:32.7]} 15... Bg6 {[%clk 0:02:05.6]} 16. Nxg6 {[%clk 0:02:28.4]}
16... fxg6 {[%clk 0:02:05.8]} 17. Bg4 {[%clk 0:02:28.3]} 17... Re8 {[%clk
0:01:58.4]} 18. Rhe1 {[%clk 0:02:25.6]} 18... Kd7 {[%clk 0:01:58]} 19. Rxe6
{[%clk 0:02:18.5]} 19... Rxe6 {[%clk 0:01:56.9]} 20. Re1 {[%clk 0:02:18.3]}
20... Be7 {[%clk 0:01:27.1]} 21. Rxe6 {[%clk 0:02:09.1]} 21... Kd8 {[%clk
0:01:15.4]} 22. Rxg6 {[%clk 0:02:06.3]} 22... Bf6 {[%clk 0:01:00.2]} 23. Be5
{[%clk 0:01:56.4]} 23... Re8 {[%clk 0:00:52.2]} 24. c4 {[%clk 0:01:33.1]} 24...
Bxe5 {[%clk 0:00:39]} 25. dxe5 {[%clk 0:01:30.2]} 25... Nf6 {[%clk 0:00:29.7]}
26. exf6 {[%clk 0:01:27.1]} 1-0